bitfinex-derivatives/quotes_ETHF0:USTF0_20250923
["timestamp","ask_amount","ask_price","bid_price","bid_amount"]
[1758634112446,1.15726,4199.0,4198.9,1.18467]
[1758634112648,0.7289,4199.0,4198.9,1.18467]
[1758634112945,0.858,4199.0,4198.9,1.18467]
[1758634116248,0.7289,4199.0,4198.9,1.18467]
[1758634116452,0.5186,4199.0,4198.9,1.18467]
[1758634116952,0.7289,4199.0,4198.9,1.18467]
[1758634118447,0.858,4199.0,4198.9,1.18467]
[1758634118844,0.42838,4198.9,4198.7,0.42839]
[1758634119049,0.7289,4198.8,4198.7,0.63169]
[1758634119448,0.7289,4198.8,4198.7,0.96639]
[1758634120357,1.15728,4198.8,4198.7,0.96639]
[1758634120854,0.7289,4198.8,4198.7,0.63169]
[1758634121464,1.15728,4198.8,4198.7,0.42839]
[1758634121754,0.7289,4198.6,4198.5,0.6684]
[1758634122054,1.1573,4198.6,4198.5,0.8717]
[1758634122749,1.1573,4198.6,4198.5,0.4433]
[1758634122950,1.1573,4198.6,4198.5,0.24]
[1758634123150,1.1573,4198.6,4198.5,0.66841]
[1758634123454,1.15733,4198.4,4198.3,0.63172]
[1758634125353,0.42844,4198.2,4198.1,0.42844]
[1758634125555,1.15734,4198.2,4198.1,0.63174]
[1758634125758,1.15734,4198.2,4198.1,0.42844]
[1758634125955,1.15734,4198.2,4198.1,0.63174]
[1758634127063,1.15737,4197.9,4197.8,0.2033]
[1758634127265,1.15737,4197.9,4197.8,0.538]
[1758634127459,0.4285,4197.7,4197.5,3.2078]
[1758634127662,1.1574,4197.7,4197.6,0.6318]
[1758634127862,0.85443,4197.4,4197.3,0.24]
[1758634128061,1.15743,4197.4,4197.3,0.9963]
[1758634128363,0.7289,4197.4,4197.3,1.42484]
[1758634128961,3.9367,4197.8,4197.7,1.1848]
[1758634129168,4.36519,4197.8,4197.7,1.1848]
[1758634129365,3.9367,4197.8,4197.7,0.8501]
[1758634129663,3.9367,4197.8,4197.7,1.1848]
[1758634130057,0.303,4198.1,4198.0,0.2033]
[1758634130260,0.94705,4198.1,4198.0,1.18476]
[1758634130462,1.15735,4198.1,4198.0,1.18476]
[1758634131067,0.7289,4198.1,4198.0,1.18476]
[1758634132963,1.15735,4198.1,4198.0,0.7563]
[1758634133162,1.15735,4198.1,4198.0,1.18476]
[1758634134167,0.7289,4198.1,4198.0,1.18476]
[1758634134866,1.15735,4198.1,4198.0,1.18476]
[1758634138468,0.7289,4198.1,4198.0,1.18476]
[1758634138856,0.7556,4198.3,4198.2,1.14674]
[1758634139060,0.94403,4198.3,4198.2,1.14674]
[1758634139369,0.5156,4198.3,4198.2,1.14674]
[1758634139572,0.7311,4198.3,4198.2,1.14674]
[1758634141271,1.15953,4198.3,4198.2,0.63404]
[1758634141475,1.15953,4198.3,4198.2,0.2056]
[1758634141770,1.15953,4198.3,4198.2,0.63404]
[1758634143270,1.15953,4198.3,4198.2,0.42844]
[1758634143472,1.15953,4198.3,4198.2,0.63404]
[1758634143873,1.15953,4198.3,4198.2,0.94004]
[1758634144170,0.7311,4198.3,4198.2,0.94004]
[1758634144370,0.5462,4198.4,4198.3,0.84073]
[1758634144569,0.3062,4198.4,4198.3,1.14673]
[1758634144764,0.5156,4198.7,4198.6,0.9411]
[1758634144977,0.7311,4198.7,4198.6,1.1467]
[1758634146071,0.5156,4199.0,4198.9,0.84067]
[1758634146273,0.5156,4199.0,4198.9,1.14667]
[1758634146574,0.2094,4199.0,4198.9,1.14667]
[1758634146774,0.5156,4199.0,4198.9,1.14667]
[1758634147170,0.94396,4199.0,4198.9,1.14667]
[1758634147472,0.7311,4199.0,4198.9,1.14667]
[1758634148475,1.15946,4199.0,4198.9,1.14667]
[1758634148876,0.7311,4199.0,4198.9,1.14667]
[1758634149482,0.94393,4199.3,4199.2,1.14663]
[1758634149684,1.15943,4199.3,4199.2,1.14663]
[1758634150281,1.15943,4199.3,4199.2,0.7183]
[1758634150570,1.15943,4199.3,4199.2,0.2056]
[1758634152673,0.3062,4199.3,4199.0,0.2022]
[1758634152878,4.51862,4199.4,4198.5,0.1256]
[1758634152879,0.6461,4198.6,4198.5,0.8505]
[1758634153078,1.1648,4198.6,4198.5,0.8505]
[1758634155774,1.1648,4198.6,4198.3,3.5221]
[1758634155775,1.1648,4198.6,4198.4,0.42842]
[1758634155978,1.29501,4198.5,4198.4,0.63062]
[1758634156176,0.8666,4198.5,4198.4,0.94492]
[1758634156881,1.29501,4198.5,4198.4,0.94492]
[1758634157078,1.29501,4198.5,4198.4,0.63062]
[1758634157379,1.29501,4198.5,4198.4,0.94492]
[1758634157579,0.8666,4198.5,4198.4,0.94492]
[1758634157780,0.8666,4198.5,4198.4,1.16482]
[1758634158583,0.7364,4198.5,4198.4,1.16482]
[1758634160382,0.5291,4198.5,4198.4,1.16482]
[1758634161684,0.3114,4198.5,4198.4,1.16482]
[1758634161985,0.64608,4198.8,4198.7,1.16479]
[1758634162284,0.85338,4198.8,4198.7,1.16479]
[1758634162583,1.16478,4198.8,4198.7,1.16479]
[1758634168598,0.7364,4198.8,4198.7,1.16479]
[1758634168794,0.84413,4199.3,4199.2,1.19063]
[1758634168990,0.2058,4199.3,4199.2,1.19063]
[1758634169290,0.84413,4199.3,4199.2,0.7623]
[1758634169498,1.17373,4199.3,4199.2,0.2095]
[1758634170500,0.42835,4199.1,4199.0,0.42836]
[1758634171395,0.63415,4199.1,4199.0,0.63786]
[1758634171699,1.17375,4199.1,4199.0,0.63786]
[1758634173501,1.17375,4199.1,4199.0,1.19066]
[1758634177504,0.63413,4199.3,4199.2,0.63784]
[1758634177694,3.2078,4199.4,4199.3,0.42833]
[1758634177899,3.5374,4199.4,4199.3,1.19063]
[1758634178105,3.7432,4199.4,4199.3,1.19063]
[1758634178408,0.5354,4199.4,4199.3,1.19063]
[1758634178707,1.17372,4199.4,4199.3,0.7623]
[1758634179204,4.38152,4199.4,4199.3,0.4269]
[1758634179511,4.38152,4199.4,4199.3,0.63783]
[1758634180808,4.38152,4199.4,4199.3,0.97323]
[1758634181105,4.38152,4199.4,4199.3,0.63783]
[1758634182105,4.38152,4199.4,4199.3,0.2095]
[1758634183905,0.2058,4198.8,4198.7,0.24]
[1758634184112,0.4158,4198.8,4198.7,1.21329]
[1758634184305,0.7454,4198.8,4198.7,1.43069]
[1758634185105,1.17378,4198.8,4198.7,1.19069]
[1758634185407,0.7454,4198.3,4198.1,0.42845]
[1758634185601,1.17385,4198.2,4198.1,0.42845]
[1758634186111,0.7454,4197.9,4197.8,1.19078]
[1758634190011,1.17387,4197.9,4197.8,0.7623]
[1758634190209,1.17387,4197.9,4197.8,0.4269]
[1758634190411,1.17387,4197.9,4197.8,1.19078]
[1758634190712,0.7454,4197.9,4197.8,1.19078]
[1758634191211,1.17387,4197.9,4197.8,1.19078]
[1758634193315,0.7454,4197.9,4197.8,1.19078]
[1758634194211,0.94914,4198.2,4198.1,0.4288]
[1758634194614,0.94914,4198.2,4198.1,1.17115]
[1758634194819,1.15144,4198.2,4198.1,0.7427]
[1758634195016,0.55486,4198.0,4197.9,0.42847]
[1758634195216,0.8494,4198.0,4197.9,1.17117]
[1758634195418,0.723,4198.0,4197.9,1.17117]
[1758634196117,1.15146,4198.0,4197.9,1.17117]
[1758634196815,0.723,4198.0,4197.9,1.17117]
[1758634197219,0.723,4197.5,4197.4,4.37903]
[1758634197518,0.5207,4197.5,4197.4,4.37903]
[1758634198312,3.2078,4197.9,4197.8,0.42848]
[1758634198518,3.2078,4197.9,4197.8,1.17118]
[1758634199916,3.5175,4197.9,4197.8,1.17118]
[1758634200314,3.9308,4197.9,4197.8,1.17118]
[1758634200521,3.9308,4197.9,4197.0,0.3139]
[1758634200522,0.1264,4197.5,4197.0,0.3139]
[1758634200714,0.1264,4197.0,4196.7,0.5301]
[1758634200919,0.1264,4197.0,4196.5,0.64481]
[1758634200920,0.84191,4196.6,4196.5,0.64481]
[1758634201115,0.4133,4196.6,4196.5,0.64481]
[1758634201319,1.07567,4197.0,4196.9,0.7427]
[1758634201519,1.27797,4197.0,4196.9,0.4288]
[1758634201716,0.723,4196.8,4196.7,0.6448]
[1758634201914,0.5207,4197.0,4196.9,0.95868]
[1758634202119,0.4133,4196.4,4196.3,1.19874]
[1758634202321,0.4133,4196.4,4196.3,1.17134]
[1758634202517,3.2078,4196.7,4196.3,1.17134]
[1758634202518,3.4188,4196.7,4196.6,0.85741]
[1758634202720,3.9308,4196.7,4196.6,1.17131]
[1758634202916,0.211,4196.4,4196.3,0.4562]
[1758634203218,0.211,4196.9,4196.8,0.85738]
[1758634203423,0.723,4196.9,4196.8,0.7427]
[1758634203622,0.723,4196.9,4196.8,1.17129]
[1758634203923,3.2078,4197.2,4197.1,0.42856]
[1758634204222,3.9308,4197.2,4197.1,0.2162]
[1758634204420,3.9308,4197.2,4196.5,0.1247]
[1758634204421,0.723,4197.1,4197.0,1.17127]
[1758634204723,0.1264,4197.5,4197.0,1.17127]
[1758634204724,0.5207,4197.4,4197.3,1.17124]
[1758634204920,3.2078,4197.7,4197.6,0.4285]
[1758634205120,0.3097,4197.4,4197.3,0.241]
[1758634205425,0.723,4197.4,4197.3,1.17124]
[1758634205621,0.8494,4197.0,4196.9,0.42858]
[1758634206221,0.8494,4197.0,4196.9,1.17128]
[1758634206528,0.723,4197.0,4196.9,1.17128]
[1758634206821,0.5397,4197.5,4197.4,0.64473]
[1758634207025,0.96821,4197.5,4197.4,0.64473]
[1758634207220,0.5397,4197.5,4197.1,0.2162]
[1758634207423,0.723,4197.2,4197.1,0.2162]
[1758634207622,3.9308,4197.7,4197.6,1.1712]
[1758634207924,3.7285,4197.7,4197.6,1.1712]
[1758634208314,0.5207,4198.3,4198.2,0.7427]
[1758634208518,0.211,4198.3,4198.2,0.7427]
[1758634209025,0.723,4198.3,4198.2,0.7427]
[1758634209423,0.5207,4198.3,4198.2,0.7427]
[1758634209624,3.2078,4198.7,4198.6,0.3139]
[1758634209828,3.2078,4198.7,4198.6,1.1711]
[1758634210124,3.9308,4198.7,4198.6,0.4288]
[1758634210428,0.723,4198.4,4198.3,0.64462]
[1758634210726,0.723,4198.4,4198.3,1.17112]
[1758634211024,3.9308,4198.7,4198.6,0.8572]
[1758634211220,3.9308,4198.7,4198.6,1.1711]
[1758634211527,3.9308,4198.7,4198.6,0.2162]
[1758634211727,0.7522,4198.4,4198.3,0.2117]
[1758634212025,0.3324,4197.9,4197.8,3.4498]
[1758634212329,0.7522,4197.9,4197.8,4.29628]
[1758634212626,0.4198,4197.6,4197.5,0.64021]
[1758634212927,0.3324,4197.3,4197.2,0.88224]
[1758634213221,0.7522,4197.3,4197.2,1.08854]
[1758634213425,0.7522,4197.3,4197.2,1.42234]
[1758634213626,3.6276,4197.9,4197.8,1.18028]
[1758634213825,3.6276,4197.9,4197.8,0.418]
[1758634214328,0.7522,4197.6,4197.5,0.2117]
[1758634214524,0.4198,4197.3,4197.2,0.2117]
[1758634214721,0.4198,4197.3,4196.3,1.07158]
[1758634214722,0.7522,4196.8,4196.4,0.42863]
[1758634214923,0.8768,4196.5,4196.0,0.242]
[1758634215123,0.7522,4196.1,4196.0,0.2117]
[1758634215331,0.5354,4196.5,4196.4,1.18043]
[1758634215632,0.8768,4196.5,4196.4,0.418]
[1758634215824,0.203,4196.5,4196.4,0.7518]
[1758634216020,3.5402,4196.8,4196.5,0.3338]
[1758634216223,3.96,4196.8,4196.7,0.418]
[1758634216726,0.1246,4196.5,4196.4,0.64032]
[1758634216934,0.7522,4196.4,4196.3,0.243]
[1758634217125,0.7522,4196.4,4196.3,0.4547]
[1758634217327,0.7522,4196.4,4196.3,0.9948]
[1758634217536,0.7522,4196.4,4196.3,0.243]
[1758634217833,0.7522,4196.4,4196.3,0.661]
[1758634218534,0.7522,4196.4,4196.3,0.4547]
[1758634219428,0.7522,4196.4,4196.3,0.243]
[1758634219827,0.5492,4196.4,4195.8,3.2078]
[1758634220028,0.1246,4196.5,4195.7,0.42869]
[1758634220029,0.3324,4195.8,4195.7,0.42869]
[1758634220228,0.7522,4195.8,4195.7,0.42869]
[1758634220724,0.55327,4196.0,4195.3,4.52265]
[1758634220725,0.203,4195.6,4195.5,0.42871]
[1758634220926,0.7522,4195.4,4195.3,0.243]
[1758634221127,0.7522,4195.4,4195.3,0.67174]
[1758634221431,0.3324,4195.3,4195.0,0.42877]
[1758634221632,0.7522,4195.1,4195.0,0.42877]
[1758634221936,0.7522,4195.1,4195.0,0.64047]
[1758634222226,0.203,4195.1,4195.0,1.18057]
[1758634222421,0.3324,4195.4,4195.0,1.18057]
[1758634222422,0.3324,4195.4,4195.3,0.42874]
[1758634222625,0.5354,4195.4,4195.3,1.18054]
[1758634222826,0.4198,4195.4,4194.8,3.2078]
[1758634223131,0.7512,4195.3,4195.2,0.42875]
[1758634223336,0.7512,4195.3,4195.2,1.17495]
[1758634224933,0.7512,4195.3,4195.2,0.86745]
[1758634225123,0.7512,4195.3,4195.2,1.17495]
[1758634225326,0.7512,4195.3,4195.2,0.86745]
[1758634225524,0.5224,4194.5,4194.3,3.2078]
[1758634225729,0.8645,4194.5,4194.4,0.42883]
[1758634225933,0.3149,4194.4,4194.3,3.2078]
[1758634226136,0.7337,4194.4,4194.3,3.2078]
[1758634226835,0.7337,4194.4,4194.3,3.4318]
[1758634227529,0.7337,4194.4,4194.3,3.954]
[1758634227736,3.2078,4194.8,4194.7,1.175]
[1758634228038,3.4153,4194.8,4194.7,1.175]
[1758634228234,3.2078,4194.8,4194.7,1.175]
[1758634228430,3.9415,4194.8,4194.7,0.6528]
[1758634228831,3.9415,4194.8,4194.7,0.9603]
[1758634229130,3.9415,4194.8,4194.7,0.6528]
[1758634229332,3.9415,4194.8,4194.7,0.4288]
[1758634229528,1.1625,4194.7,4194.5,0.67181]
[1758634229833,0.7337,4194.6,4194.5,0.67181]
[1758634230135,0.7337,4194.6,4194.5,0.89581]
[1758634230329,0.7337,4194.6,4194.5,0.65282]
[1758634230535,0.2075,4194.6,4194.5,1.17502]
[1758634230838,0.5224,4194.6,4194.5,1.17502]
[1758634231142,0.8645,4194.0,4193.9,0.65288]
[1758634231439,0.5224,4193.6,4193.5,1.17512]
[1758634231634,0.5224,4193.6,4193.5,1.41912]
[1758634231837,0.5224,4194.0,4193.9,1.17508]
[1758634232236,0.7337,4193.6,4193.5,0.468]
[1758634232432,0.5224,4193.6,4193.5,1.41912]
[1758634232734,0.2075,4194.0,4193.9,1.17508]
[1758634233037,3.2078,4194.7,4194.6,0.224]
[1758634233242,3.9415,4194.7,4194.6,1.17501]
[1758634234440,3.9415,4194.7,4194.6,0.86751]
[1758634234641,3.9415,4194.7,4194.6,1.17501]
[1758634234843,3.2078,4194.7,4194.6,1.17501]
[1758634235134,0.5224,4195.1,4195.0,0.65277]
[1758634235336,0.5224,4195.5,4195.4,0.86743]
[1758634235639,0.5224,4195.5,4195.4,1.17493]
[1758634235836,3.4153,4195.8,4195.7,0.4287]
[1758634236138,3.4153,4195.8,4195.7,1.1749]
[1758634236334,3.2078,4195.8,4195.7,1.1749]
[1758634237038,3.4153,4196.4,4196.3,0.5222]
[1758634237236,3.4153,4196.4,4196.3,1.17484]
[1758634238242,0.7337,4196.9,4196.8,0.96009]
[1758634238434,4.0723,4197.5,4197.4,0.65253]
[1758634238737,4.0723,4197.5,4197.4,0.42853]
[1758634238938,4.0723,4197.5,4197.4,0.65253]
[1758634239245,0.7337,4197.9,4197.8,0.65248]
[1758634240249,0.4457,4198.5,4198.4,0.42842]
[1758634240540,0.3149,4198.4,4198.3,0.42843]
[1758634240740,0.1308,4198.5,4197.8,0.244]
[1758634240946,0.3149,4197.8,4197.7,3.2078]
[1758634241533,0.244,4198.2,4198.1,0.42845]
[1758634241734,0.67245,4198.2,4197.7,3.5153]
[1758634241937,0.3149,4198.1,4198.0,0.42846]
[1758634242540,0.1308,4198.0,4197.8,0.244]
[1758634242741,0.3149,4197.9,4197.8,0.244]
[1758634243741,0.4188,4197.9,4197.7,0.42849]
[1758634243941,0.7337,4197.8,4197.7,1.17469]
[1758634244141,0.7337,4198.3,4198.2,0.224]
[1758634244444,3.2078,4198.6,4198.5,0.73591]
[1758634245045,3.5227,4198.6,4198.4,0.5525]
[1758634245245,0.3149,4198.5,4198.4,0.245]
[1758634245442,3.2078,4198.6,4198.5,0.3075]
[1758634245639,3.2078,4198.6,4198.5,0.4393]
[1758634245840,3.2078,4199.1,4198.9,0.42836]
[1758634246144,0.4457,4199.0,4198.4,0.5525]
[1758634246346,0.3149,4198.9,4198.8,0.42838]
[1758634246546,0.3149,4198.7,4198.5,0.42841]
[1758634246845,0.3149,4198.7,4198.6,0.4284]
[1758634247843,0.3149,4198.7,4198.6,0.7359]
[1758634248146,0.3149,4199.0,4198.9,0.42837]
[1758634248638,0.4457,4199.0,4198.9,0.42837]
[1758634248843,0.8645,4199.0,4198.9,0.42837]
[1758634249046,0.8645,4199.0,4198.9,0.224]
[1758634249434,0.7337,4199.0,4198.9,0.5315]
[1758634249747,0.7337,4199.0,4198.9,0.7462]
[1758634250446,0.7337,4199.0,4198.9,0.4387]
[1758634250648,3.2078,4199.1,4199.0,1.30636]
[1758634250836,3.4153,4199.7,4199.6,0.224]
[1758634251144,3.6266,4199.7,4199.6,0.6523]
[1758634251544,0.7337,4199.4,4199.3,0.224]
[1758634251850,0.7337,4199.1,4199.0,0.42836]
[1758634253246,0.3055,4198.8,4198.6,0.244]
[1758634253543,0.7357,4198.7,4198.6,0.244]
[1758634253746,0.7339,4198.6,4198.5,0.4284]
[1758634254048,0.3055,4198.4,4198.0,3.63626]
[1758634254247,0.1338,4198.0,4197.5,0.42851]
[1758634254449,0.3778,4198.0,4197.6,0.4285]
[1758634254750,0.3778,4198.0,4197.0,3.766]
[1758634254751,0.42849,4197.8,4197.4,0.42852]
[1758634255045,0.3055,4197.4,4197.0,0.67256]
[1758634255251,3.2078,4197.1,4196.6,0.3142]
[1758634255441,3.2078,4197.1,4196.0,0.42866]
[1758634255442,0.3055,4196.9,4196.0,0.42866]
[1758634255649,0.1338,4196.5,4195.9,3.2078]
[1758634256051,0.3055,4196.4,4196.1,0.3142]
[1758634256247,0.1338,4196.5,4195.9,3.2078]
[1758634256445,0.1338,4196.5,4195.7,0.3142]
[1758634256446,0.3055,4196.1,4195.7,0.3142]
[1758634256649,0.3055,4196.3,4195.7,0.3142]
[1758634256857,0.3055,4196.3,4196.0,0.42866]
[1758634257153,0.3055,4196.2,4196.0,0.42866]
[1758634257351,0.3055,4196.4,4195.7,0.3142]
[1758634257551,0.3055,4195.7,4195.4,0.42873]
[1758634257749,0.3055,4195.9,4195.3,0.3142]
[1758634258247,0.3055,4195.9,4195.5,0.1228]
[1758634258552,0.3055,4195.9,4195.6,0.3142]
[1758634258748,0.3055,4195.9,4195.8,0.3142]
[1758634259054,3.2078,4196.1,4196.0,0.3142]
[1758634260055,3.5133,4196.1,4196.0,0.3142]
[1758634260254,3.2078,4196.1,4196.0,0.3142]
[1758634260849,3.5133,4196.1,4196.0,0.3142]
[1758634261055,0.3055,4195.9,4195.8,0.42868]
[1758634261455,0.3055,4195.9,4195.5,0.245]
[1758634261747,0.3055,4196.0,4195.9,0.42868]
[1758634261952,0.3055,4196.5,4196.0,0.437]
[1758634262154,3.5133,4196.6,4196.5,0.3142]
[1758634262348,0.3055,4196.4,4196.3,0.245]
[1758634262550,0.3055,4196.3,4195.7,3.522]
[1758634262851,0.3055,4196.4,4195.9,1.0717]
[1758634263152,0.3055,4196.4,4196.3,0.42864]
[1758634263354,3.2078,4196.6,4196.5,0.74282]
[1758634264349,0.3055,4196.8,4196.7,0.4286]
[1758634264657,3.2078,4197.1,4197.0,0.437]
[1758634265162,3.2078,4197.1,4197.0,0.3142]
[1758634265561,3.5133,4197.1,4197.0,0.3142]
[1758634266054,0.4393,4197.0,4196.9,0.42858]
[1758634266456,3.2078,4197.1,4197.0,0.3142]
[1758634266649,3.5133,4197.1,4196.9,0.42858]
[1758634266853,3.5133,4197.1,4196.9,0.74278]
[1758634267354,3.2078,4197.1,4197.0,0.437]
[1758634267564,0.3055,4197.5,4197.4,0.42853]
[1758634268163,0.1338,4197.5,4197.3,0.42853]
[1758634268363,0.73403,4197.4,4197.2,0.67354]
[1758634268564,0.3055,4197.3,4197.2,0.67354]
[1758634269558,3.2078,4198.3,4197.7,1.07124]
[1758634269760,3.2078,4198.3,4198.2,0.74264]
[1758634270164,3.5133,4198.3,4198.2,0.74264]
[1758634270766,3.5133,4198.3,4198.2,0.42844]
[1758634271158,3.5133,4198.3,4198.2,0.74264]
[1758634271854,3.94173,4198.3,4198.1,0.42845]
[1758634272062,0.3176,4198.1,4198.0,0.42846]
[1758634272768,3.2078,4198.3,4198.2,0.73704]
[1758634273163,3.5254,4198.3,4198.2,0.73704]
[1758634273565,0.3176,4198.3,4198.2,0.73704]
[1758634273766,3.5254,4198.8,4198.7,0.42839]
[1758634274063,0.3176,4198.4,4198.3,0.42843]
[1758634274966,0.3176,4198.4,4197.8,0.3086]
[1758634275172,0.1227,4198.5,4198.1,0.42845]
[1758634275370,0.74604,4198.3,4198.2,0.42844]
[1758634275574,0.3176,4198.3,4198.2,0.42844]
[1758634275965,0.1227,4198.5,4197.8,0.42848]
[1758634276166,0.1227,4198.0,4197.8,0.42848]
[1758634276473,0.1227,4198.0,4197.6,3.2078]
[1758634276474,0.3176,4197.7,4197.6,3.2078]
[1758634276874,0.3176,4197.7,4197.6,3.9449]
[1758634277374,0.3176,4197.7,4197.6,3.6363]
[1758634277874,0.1227,4198.0,4197.9,0.42847]
[1758634278670,0.1227,4198.0,4197.8,0.42847]
[1758634278671,0.3176,4197.9,4197.8,0.42847]
[1758634278973,0.1227,4198.5,4197.8,0.42847]
[1758634278974,3.5254,4198.2,4198.1,0.73705]
[1758634279969,3.2078,4198.2,4198.1,0.73705]
[1758634280673,1.0707,4199.9,4198.5,0.1227]
[1758634280674,3.2078,4198.7,4198.5,0.1227]
[1758634280979,0.3176,4199.2,4198.6,0.245]
[1758634281173,0.3176,4199.2,4199.1,0.42835]
[1758634281379,3.2078,4199.3,4199.2,0.3086]
[1758634281672,3.2078,4199.3,4198.8,1.07096]
[1758634281673,0.3176,4199.2,4199.0,0.42835]
[1758634281870,0.3176,4199.2,4199.1,0.42834]
[1758634282068,0.3176,4199.1,4198.3,4.58747]
[1758634282277,0.4403,4199.0,4198.9,0.42837]
[1758634282775,3.2078,4199.3,4199.2,0.73694]
[1758634282977,3.5137,4199.3,4199.0,0.42836]
[1758634283179,0.3059,4199.2,4199.1,0.42835]
[1758634283378,3.2078,4199.3,4198.7,0.3315]
[1758634283685,0.3059,4198.6,4198.5,0.42841]
[1758634283871,0.3059,4198.6,4198.3,3.88122]
[1758634284076,0.3059,4198.4,4198.3,3.88122]
[1758634284671,0.3059,4198.4,4197.7,3.2078]
[1758634284873,0.3059,4198.1,4198.0,0.42846]
[1758634285469,0.3059,4198.1,4197.7,3.2078]
[1758634285669,0.4313,4198.0,4197.9,0.42847]
[1758634285873,0.3059,4198.0,4197.9,0.75997]
[1758634286479,0.3059,4197.8,4197.2,3.5393]
[1758634286677,0.4285,4197.7,4197.3,0.245]
[1758634286973,0.4285,4197.7,4197.2,3.5393]
[1758634286974,0.3059,4197.5,4197.4,0.42853]
[1758634287181,0.3059,4197.4,4197.3,0.42853]
[1758634287381,0.3059,4197.4,4197.3,0.67353]
[1758634287577,0.4313,4198.0,4197.9,0.42847]
[1758634287771,0.42848,4197.9,4197.7,0.42849]
[1758634287976,0.3059,4197.7,4197.6,0.4285]
[1758634289680,0.3059,4197.9,4197.5,0.42851]
[1758634289884,0.3059,4197.6,4197.5,0.3315]
[1758634290084,0.3059,4198.0,4197.9,0.42847]
[1758634290277,3.2078,4198.1,4198.0,0.3315]
[1758634290781,3.5137,4198.1,4198.0,0.3315]
[1758634291279,3.5137,4198.1,4197.9,0.42847]
[1758634291484,0.3059,4198.0,4197.9,0.42847]
[1758634292182,3.2078,4198.1,4198.0,0.75996]
[1758634292586,3.2078,4198.1,4197.8,0.3315]
[1758634292786,0.3059,4198.0,4197.9,0.42847]
[1758634293086,0.3059,4198.0,4197.9,0.75997]
[1758634293484,3.94207,4198.9,4198.8,0.42838]
[1758634293788,3.5137,4198.9,4198.8,0.42838]
[1758634294080,0.3059,4198.8,4198.4,0.3315]
[1758634294284,3.2078,4198.9,4198.4,0.42842]
[1758634294587,0.3059,4198.4,4198.3,0.67343]
[1758634294986,0.3059,4198.8,4198.3,0.5765]
[1758634295190,3.5137,4199.4,4198.7,0.3315]
[1758634295484,3.63612,4199.4,4198.8,1.31596]
[1758634295684,0.73423,4199.3,4199.2,0.42833]
[1758634295887,3.2078,4199.4,4199.3,0.75983]
[1758634296390,3.5137,4199.4,4199.3,0.42833]
[1758634296587,3.2078,4199.4,4199.2,0.42834]
[1758634296783,0.3059,4199.3,4199.2,0.42834]
[1758634297887,0.3059,4199.1,4199.0,0.42836]
[1758634298091,0.42839,4198.8,4198.6,0.245]
[1758634298286,0.42839,4198.8,4198.3,3.2078]
[1758634298287,0.4284,4198.7,4198.4,0.42842]
[1758634298595,0.4313,4198.5,4198.4,0.42842]
[1758634298893,0.3059,4198.4,4198.3,3.2078]
[1758634299294,3.5137,4198.9,4198.3,4.61037]
[1758634299588,3.5137,4198.9,4198.4,0.3315]
[1758634299793,0.1254,4198.5,4198.3,0.42843]
[1758634299984,0.3059,4198.4,4198.3,0.42843]
[1758634300187,0.3059,4198.4,4198.3,0.75993]
[1758634300495,0.3059,4198.4,4198.1,0.42845]
[1758634300693,0.3059,4198.2,4198.1,0.42845]
[1758634300889,0.42844,4198.3,4197.8,3.2078]
[1758634301094,0.3059,4198.4,4197.8,3.2078]
[1758634301298,0.3059,4198.4,4198.3,0.42843]
[1758634301896,3.2078,4198.4,4197.9,0.245]
[1758634302097,0.1254,4198.0,4197.9,0.67348]
[1758634302291,0.4313,4198.0,4197.9,0.42848]
[1758634302589,0.4313,4198.0,4197.5,0.42851]
[1758634302590,0.3059,4197.6,4197.5,0.42851]
[1758634302794,0.3059,4197.6,4197.5,0.76001]
[1758634303095,0.3059,4197.9,4197.8,0.75999]
[1758634303293,3.2078,4198.4,4197.8,1.07122]
[1758634303495,0.3059,4198.3,4198.2,0.75994]
[1758634304293,0.3059,4198.3,4198.2,0.42844]
[1758634304697,0.3059,4198.3,4198.2,0.75994]
[1758634305192,0.3059,4198.3,4198.2,0.42844]
[1758634305693,3.2078,4198.4,4198.3,0.3315]
[1758634306395,3.2078,4198.9,4198.8,0.42838]
[1758634306696,3.5137,4198.9,4198.8,0.245]
[1758634307797,1.07059,4200.3,4198.8,0.245]
[1758634307798,3.2078,4199.5,4199.0,0.4555]
[1758634307998,0.42829,4199.8,4198.9,1.07094]
[1758634308200,0.4313,4199.5,4199.4,0.42831]
[1758634308395,0.3059,4199.3,4199.1,0.42835]
[1758634308590,0.42835,4199.2,4198.8,0.245]
[1758634308894,0.3059,4198.9,4198.8,0.67338]
[1758634309605,0.42839,4198.8,4198.6,0.4284]
[1758634309899,0.3059,4198.7,4198.6,0.4284]
[1758634310108,0.3059,4198.6,4198.3,0.245]
[1758634310405,0.3059,4198.4,4198.3,0.67343]
[1758634310601,0.42843,4198.3,4198.1,0.42845]
[1758634310793,0.3059,4197.9,4197.7,3.2078]
[1758634311103,0.3059,4197.8,4197.7,3.6363]
[1758634311698,0.3059,4197.4,4197.0,3.2078]
[1758634311900,0.1254,4197.5,4197.3,0.42854]
[1758634312102,0.3059,4197.4,4197.3,0.42854]
[1758634312298,0.3059,4197.4,4197.1,0.67355]
[1758634312500,0.3059,4197.4,4197.3,0.42853]
[1758634314909,0.55392,4197.5,4197.2,0.42855]